[Event "15th Deltalift Open 2018"]
[Site "Halmstad"]
[Date "2018.05.10"]
[Round "3"]
[White "Svorono, Gabriel"]
[Black "Lokander, Martin"]
[Result "1/2-1/2"]
[ECO "C75"]
[WhiteElo "2113"]
[BlackElo "2386"]
[Annotator "NA"]
[PlyCount "101"]
[EventDate "2018.??.??"]
[EventType "swiss"]
[EventCountry "SWE"]
[SourceTitle "playchess.com"]
[Source "ChessBase"]
[SourceQuality "1"]
[TimeControl "1800+12"]

1. e4 {[%emt 0:00:00]} e5 {[%emt 0:00:01]} 2. Nf3 {[%emt 0:00:00]} Nc6 {[%emt 0:00:02]} 3. Bb5 {[%emt 0:00:00]} a6 {[%emt 0:00:01]} 4. Ba4 {[%emt 0:00:00]} d6 {[%emt 0:00:01]} 5. c3 {[%emt 0:00:41]} Bd7 {[%emt 0:00:04]} 6. O-O {[%emt 0:00:10]} g6 {[%emt 0:00:01]} 7. d4 {[%emt 0:00:26]} Bg7 {[%emt 0:00:02]} 8. Re1 {[%emt 0:01:39]} Nf6 {[%emt 0:00:11]} 9. dxe5 {[%emt 0:00:43] C79: Ruy Lopez: Steinitz-type lines with 3...a6 4 Ba4 Nf6 5 0-0 d6} (9. Bxc6 Bxc6 10. dxe5 Nxe4 11. exd6 O-O 12. dxc7 Qxc7 13. Be3 Rad8 14. Nd4 Be5 15. h3 Bh2+ 16. Kh1 Bf4 {½-½ (60) Kasimdzhanov,R (2683)-Mamedyarov,S (2799) Riadh 2017}) 9... dxe5 {[%emt 0:00:41]} 10. Nbd2 {[%emt 0:00:55]} O-O {[%emt 0:00:14]} 11. Bxc6 {[%emt 0:01:04]} Bxc6 12. Nxe5 {[%emt 0:00:07]} Bxe4 {[%emt 0:00:31]} 13. Nxe4 {[%emt 0:00:10] [#]} Nxe4 $146 {[%emt 0:00:23]} ({Predecessor:} 13... Qxd1 14. Nxf6+ Bxf6 15. Rxd1 Bxe5 16. Be3 Rad8 {½-½ (43) Gao,R (2533)-Sandipan,C (2574) Cappelle-la-Grande 2015}) 14. Nf3 {[%emt 0:01:00]} Qxd1 {[%emt 0:00:26]} 15. Rxd1 {[%emt 0:00:06]} Rad8 {[%emt 0:00:12]} 16. Be3 {[%emt 0:00:09]} Rfe8 {[%emt 0:00:36]} 17. Kf1 {[%emt 0:02:28]} f5 {[%emt 0:00:23]} 18. Bf4 {[%emt 0:00:32]} c5 {[%emt 0:00:27]} 19. Bc7 {[%emt 0:00:37]} Rc8 {[%emt 0:00:01]} 20. Bf4 {[%emt 0:00:07]} Rcd8 {[%emt 0:00:03]} 21. Bc7 {[%emt 0:00:05]} Rc8 {[%emt 0:00:02]} 22. Bf4 {[%emt 0:00:03]} Red8 {[%emt 0:00:36]} 23. Ng5 {[%emt 0:00:30]} Re8 {[%emt 0:03:42]} 24. Rd7 {[%emt 0:01:01]} h6 {[%emt 0:00:22]} 25. Nxe4 {[%emt 0:00:59]} Rxe4 {[%emt 0:00:02]} 26. Bd2 {[%emt 0:00:04]} Rb8 {[%emt 0:01:54]} 27. Re1 {[%emt 0:00:11]} Rxe1+ {[%emt 0:00:13]} 28. Kxe1 {[%emt 0:00:08]} Bf8 {[%emt 0:00:43]} 29. Bf4 {[%emt 0:00:29]} Re8+ {[%emt 0:00:01]} 30. Kd2 {[%emt 0:00:05]} b5 {[%emt 0:00:39]} 31. Bd6 {[%emt 0:00:25]} Re6 {[%emt 0:00:16]} 32. Bxf8 {[%emt 0:00:21]} Kxf8 {[%emt 0:00:01]} 33. b3 {[%emt 0:00:56]} Ke8 {[%emt 0:00:03]} 34. Rd5 {[%emt 0:00:04]} Rc6 {[%emt 0:00:06]} 35. c4 {[%emt 0:00:18]} b4 {[%emt 0:00:23]} 36. Ke3 {[%emt 0:01:12]} Ke7 {[%emt 0:00:07]} 37. h4 {[%emt 0:00:21]} Kf6 {[%emt 0:00:12]} 38. f4 {[%emt 0:00:40]} Ke6 {[%emt 0:00:24]} 39. Re5+ {[%emt 0:00:05]} Kf6 $11 {[%emt 0:00:04]} 40. Rd5 {[%emt 0:00:03]} g5 {[%emt 0:00:51]} 41. hxg5+ {[%emt 0:00:09]} hxg5 {[%emt 0:00:03]} 42. g4 {[%emt 0:00:12]} gxf4+ {[%emt 0:01:40]} 43. Kxf4 {[%emt 0:00:06]} fxg4 {[%emt 0:00:02]} 44. Kxg4 {[%emt 0:00:09]} Kg6 {[%emt 0:00:09]} 45. Kf4 {[%emt 0:00:16]} Kf6 {[%emt 0:00:01]} 46. Rh5 {[%emt 0:00:16]} Ke6 {[%emt 0:00:01]} 47. Rh6+ {[%emt 0:00:06]} Kd7 {[%emt 0:00:01]} 48. Rxc6 {[%emt 0:00:12]} Kxc6 {[%emt 0:00:02]} 49. Ke5 {[%emt 0:00:02]} Kb6 {[%emt 0:00:01]} 50. Kd6 {[%emt 0:00:07]} Ka5 {[%emt 0:00:01]} 51. Kc7 1/2-1/2

[Event "15th Deltalift Open 2018"]
[Site "Halmstad"]
[Date "2018.05.10"]
[Round "3"]
[White "Johnson, Daniel"]
[Black "Haugli, Petter"]
[Result "0-1"]
[ECO "E81"]
[WhiteElo "2028"]
[BlackElo "2245"]
[Annotator "ChessBase"]
[PlyCount "74"]
[EventDate "2018.??.??"]
[EventType "swiss"]
[EventCountry "SWE"]
[SourceTitle "playchess.com"]
[Source "ChessBase"]
[SourceQuality "1"]
[TimeControl "1800+12"]

1. d4 {[%emt 0:00:00]} Nf6 {[%emt 0:00:05]} 2. c4 {[%emt 0:00:00]} g6 {[%emt 0:00:03]} 3. Nc3 {[%emt 0:00:00]} Bg7 {[%emt 0:00:01]} 4. e4 {[%emt 0:00:01]} d6 {[%emt 0:00:02]} 5. f3 {[%emt 0:00:01]} O-O {[%emt 0:00:10]} 6. Nge2 {[%emt 0:00:02]} c5 {[%emt 0:01:18]} 7. d5 {[%emt 0:00:03]} a6 {[%emt 0:01:23]} 8. Ng3 {[%emt 0:00:11]} Nbd7 {[%emt 0:00:37]} 9. Be2 {[%emt 0:01:20]} b5 {[%emt 0:01:17]} 10. cxb5 {[%emt 0:02:03]} axb5 {[%emt 0:00:05]} 11. Bxb5 {[%emt 0:00:24]} Ba6 {[%emt 0:00:11]} 12. Bxa6 {[%emt 0:02:26]} Rxa6 {[%emt 0:00:02]} 13. Qe2 {[%emt 0:00:02]} Qb6 {[%emt 0:02:09]} 14. Nf1 {[%emt 0:06:43]} Rb8 {[%emt 0:00:49]} 15. Ne3 {[%emt 0:00:52]} Ne8 {[%emt 0:02:49]} 16. O-O {[%emt 0:03:57]} Nc7 {[%emt 0:00:35]} 17. a4 {[%emt 0:03:04]} Raa8 {[%emt 0:02:44]} 18. f4 {[%emt 0:03:55]} Qa5 {[%emt 0:03:11]} 19. e5 {[%emt 0:02:46]} dxe5 {[%emt 0:01:13]} 20. f5 {[%emt 0:00:51]} Nf6 {[%emt 0:02:44]} 21. fxg6 {[%emt 0:03:44]} hxg6 {[%emt 0:00:06]} 22. d6 {[%emt 0:01:03]} exd6 {[%emt 0:00:26]} 23. Rxf6 {[%emt 0:00:09]} Bxf6 {[%emt 0:00:05]} 24. Ned5 {[%emt 0:00:13]} Nxd5 {[%emt 0:00:26]} 25. Nxd5 {[%emt 0:00:02]} Qd8 {[%emt 0:07:46]} 26. Qf2 {[%emt 0:00:08]} Bg7 {[%emt 0:00:20]} 27. h4 {[%emt 0:00:21]} Rb4 {[%emt 0:00:31]} 28. Bg5 {[%emt 0:00:17]} f6 {[%emt 0:00:30]} 29. Bxf6 {[%emt 0:00:52]} Bxf6 {[%emt 0:00:06]} 30. Nxf6+ {[%emt 0:00:02]} Kg7 {[%emt 0:00:10]} 31. Nd5 {[%emt 0:00:18]} Rd4 {[%emt 0:00:58]} 32. Rf1 {[%emt 0:00:04]} Ra7 {[%emt 0:00:02]} 33. Ne3 {[%emt 0:00:28]} Rf4 {[%emt 0:00:28]} 34. Qg3 {[%emt 0:00:12]} Rxf1+ {[%emt 0:00:34]} 35. Kxf1 {[%emt 0:00:02]} Qf6+ {[%emt 0:00:25]} 36. Kg1 {[%emt 0:00:09]} Rxa4 {[%emt 0:01:02]} 37. Nc2 Qf4 0-1

[Event "15th Deltalift Open 2018"]
[Site "Halmstad"]
[Date "2018.05.10"]
[Round "3"]
[White "Hakansson, Stefan"]
[Black "Nilsson, Anders"]
[Result "0-1"]
[ECO "A41"]
[WhiteElo "2010"]
[BlackElo "2226"]
[Annotator "NA"]
[PlyCount "148"]
[EventDate "2018.??.??"]
[EventType "swiss"]
[EventCountry "SWE"]
[SourceTitle "playchess.com"]
[Source "ChessBase"]
[SourceQuality "1"]
[TimeControl "1800+12"]

1. d4 {[%emt 0:00:00]} d6 {[%emt 0:00:14]} 2. Bg5 {[%emt 0:01:01]} Nd7 {[%emt 0:00:45] A41: 1 d4 d6: Tartakower System and Modern Defence} (2... Nf6 3. Bxf6 exf6 4. g3 d5 5. Bg2 c6 6. e3 Bd6 7. Nd2 O-O 8. Ne2 Re8 9. O-O Nd7 10. c4 dxc4 11. Nxc4 Bf8 12. Qc2 {1-0 (40) Vitiugov,N (2726)-Plat,V (2532) Tallinn 2016}) 3. e3 {[%emt 0:00:08]} Ngf6 {[%emt 0:00:19]} 4. Nd2 {[%emt 0:00:19]} g6 {[%emt 0:00:55]} 5. Ngf3 {[%emt 0:05:55]} h6 {[%emt 0:01:13]} 6. Bh4 {[%emt 0:00:09]} g5 {[%emt 0:00:01]} 7. Bg3 {[%emt 0:00:02]} Nh5 {[%emt 0:00:02]} 8. Bc4 $146 {[%emt 0:00:42]} ({Predecessor:} 8. c3 c6 9. Bd3 Ndf6 10. e4 Be6 11. e5 Nd5 12. Qc2 {0-1 (23) Pates,C (1779)-Poletaev,V (2159) ICCF email 2013}) 8... Nxg3 {[%emt 0:04:54]} 9. hxg3 {[%emt 0:00:02]} Bg7 {[%emt 0:00:01]} 10. c3 {[%emt 0:00:23]} e6 {[%emt 0:00:25]} 11. Qb3 {[%emt 0:01:51]} Qe7 {[%emt 0:01:12]} 12. Ng1 {[%emt 0:06:38]} e5 {[%emt 0:05:26]} 13. Ne2 {[%emt 0:02:29]} e4 {[%emt 0:01:28]} 14. Qc2 {[%emt 0:00:14]} Nf6 {[%emt 0:01:22]} 15. Bb3 {[%emt 0:03:52]} c6 {[%emt 0:01:00]} 16. Nf1 {[%emt 0:02:44]} Bg4 {[%emt 0:02:19]} 17. O-O-O {[%emt 0:03:21]} a5 {[%emt 0:00:22]} 18. Re1 {[%emt 0:00:39]} Bf5 {[%emt 0:01:41]} 19. Qd2 {[%emt 0:00:18]} a4 {[%emt 0:00:39]} 20. Bc2 {[%emt 0:00:08]} a3 {[%emt 0:00:33]} 21. b3 {[%emt 0:00:05]} d5 {[%emt 0:00:28]} 22. f4 {[%emt 0:00:50]} b6 {[%emt 0:02:30]} ({Black should play} 22... g4 $19 23. c4 b5) 23. Nh2 {[%emt 0:00:42]} Qe6 {[%emt 0:00:44]} 24. Ref1 {[%emt 0:00:51] [#]} g4 $1 {[%emt 0:00:10]} 25. Kd1 {[%emt 0:00:29]} h5 {[%emt 0:00:31]} 26. Ke1 {[%emt 0:00:03]} Bf8 {[%emt 0:00:31]} 27. Kf2 {[%emt 0:00:14]} Bd6 {[%emt 0:00:09]} 28. Rc1 {[%emt 0:00:03]} Kf8 {[%emt 0:00:07]} 29. Bb1 {[%emt 0:00:10]} Kg7 {[%emt 0:00:02]} 30. c4 {[%emt 0:00:13]} Qe7 {[%emt 0:00:18]} 31. Nc3 {[%emt 0:00:17]} h4 {[%emt 0:00:12]} 32. Nf1 {[%emt 0:00:13]} h3 {[%emt 0:00:17]} 33. gxh3 {[%emt 0:00:07]} Rxh3 {[%emt 0:00:02]} 34. Rxh3 {[%emt 0:00:01]} gxh3 {[%emt 0:00:01]} 35. Nh2 Bb4 {[%emt 0:00:36]} 36. Qe2 {[%emt 0:00:05]} Qe6 {[%emt 0:00:05]} 37. cxd5 {[%emt 0:00:22]} cxd5 {[%emt 0:00:06]} 38. Nb5 {[%emt 0:00:31]} Rc8 {[%emt 0:00:48]} 39. Rxc8 {[%emt 0:00:05]} Qxc8 {[%emt 0:00:02]} 40. Qc2 {[%emt 0:00:10]} Qxc2+ {[%emt 0:00:06]} 41. Bxc2 {[%emt 0:00:01]} Ng4+ {[%emt 0:00:01]} 42. Nxg4 {[%emt 0:00:02]} Bxg4 {[%emt 0:00:00]} 43. Nc7 {[%emt 0:00:19]} Bf3 {[%emt 0:00:06]} 44. Kg1 {[%emt 0:00:06]} Be1 {[%emt 0:00:06]} 45. Kh2 {[%emt 0:00:07]} Bg2 {[%emt 0:00:38]} 46. Nxd5 {[%emt 0:00:04]} Kg6 {[%emt 0:00:09]} (46... Bd2 $14) 47. Nxb6 {[%emt 0:00:30]} Kf5 {[%emt 0:00:10]} 48. Bd1 $2 {[%emt 0:00:14]} (48. Nd5 $14 {keeps the upper hand.}) 48... Bf3 {[%emt 0:01:09]} 49. Bxf3 {[%emt 0:00:12]} exf3 {[%emt 0:00:01]} 50. Kxh3 {[%emt 0:00:01]} Ke4 {[%emt 0:00:01]} 51. Nc4 {[%emt 0:00:18]} Kd3 {[%emt 0:00:04]} 52. Ne5+ {[%emt 0:00:50]} Ke2 {[%emt 0:00:00]} 53. Nxf3 $2 {[%emt 0:00:56]} (53. Ng4 $11) 53... Kxf3 {[%emt 0:00:01]} 54. Kh4 {[%emt 0:00:17]} Kxe3 {[%emt 0:00:29]} (54... Bxg3+ $142 55. Kh3 Bf2) 55. d5 {[%emt 0:00:02]} Ke4 $2 {[%emt 0:00:38]} (55... Kd3 $19 {is more deadly.} 56. Kh3 (56. d6 Kc2 $19) 56... Kc3) 56. d6 {[%emt 0:00:00]} Bb4 {[%emt 0:01:03]} ({Black should play} 56... Kf5 $17 57. d7 Ba5) 57. d7 {[%emt 0:00:02]} Be7+ {[%emt 0:00:01]} 58. Kg4 {[%emt 0:00:29]} Kd5 {[%emt 0:00:08]} 59. Kf5 {[%emt 0:00:10]} Kd6 {[%emt 0:00:01]} 60. g4 {[%emt 0:00:01]} Kxd7 {[%emt 0:00:01]} 61. g5 {[%emt 0:00:01]} Ke8 {[%emt 0:00:05]} 62. Kg4 {[%emt 0:00:20]} Kd7 {[%emt 0:00:13]} 63. Kf5 {[%emt 0:00:02]} Ke8 {[%emt 0:00:02]} 64. Kg4 {[%emt 0:00:01]} Bb4 {[%emt 0:00:17]} 65. Kf5 {[%emt 0:00:08]} Kf8 {[%emt 0:00:18]} 66. Kg4 {[%emt 0:00:14]} Bc3 {[%emt 0:00:10]} (66... Bd2 $142 67. f5 Ke7) 67. f5 {[%emt 0:00:03]} Ke7 {[%emt 0:00:04]} 68. Kh5 {[%emt 0:00:44]} Bd2 {[%emt 0:00:14]} 69. Kg4 {[%emt 0:00:17]} Kd6 {[%emt 0:00:12]} 70. Kh5 {[%emt 0:00:06]} (70. g6 $17 {only move.} fxg6 71. fxg6) 70... Ke5 {[%emt 0:01:35]} (70... Bb4 $5) 71. Kg4 {[%emt 0:00:31]} Bc1 {[%emt 0:00:05]} 72. g6 {[%emt 0:00:05]} fxg6 {[%emt 0:00:17]} 73. fxg6 {[%emt 0:00:02]} Kf6 {[%emt 0:00:06]} 74. Kh5 $2 {[%emt 0:00:18]} (74. Kf3 $17) 74... Bd2 $11 {[%emt 0:00:05]} 0-1

[Event "15th Deltalift Open 2018"]
[Site "Halmstad"]
[Date "2018.05.10"]
[Round "3"]
[White "Magelius, Olof"]
[Black "Lindhe, Magnus"]
[Result "0-1"]
[ECO "B06"]
[WhiteElo "1984"]
[BlackElo "2170"]
[Annotator "NA"]
[PlyCount "62"]
[EventDate "2018.??.??"]
[EventType "swiss"]
[EventCountry "SWE"]
[SourceTitle "playchess.com"]
[Source "ChessBase"]
[SourceQuality "1"]
[TimeControl "1800+12"]

1. e4 {[%emt 0:00:00]} g6 {[%emt 0:01:08]} 2. d4 {[%emt 0:00:24]} Bg7 {[%emt 0:00:15]} 3. Nc3 {[%emt 0:00:17]} c6 {[%emt 0:01:34]} 4. Be3 {[%emt 0:02:01]} d5 {[%emt 0:00:15]} 5. f3 {[%emt 0:01:21]} dxe4 6. Bc4 Nf6 {[%emt 0:02:35]} 7. fxe4 {[%emt 0:01:32]} b5 {[%emt 0:02:25]} 8. Bb3 {[%emt 0:00:43]} b4 {[%emt 0:00:15]} 9. Nce2 {[%emt 0:01:22]} Nxe4 {[%emt 0:01:56]} 10. Nf3 {[%emt 0:00:43]} O-O {[%emt 0:00:38]} 11. O-O {[%emt 0:00:51]} a5 {[%emt 0:01:59]} 12. Ne5 $17 {[%emt 0:03:29]} Nd6 {[%emt 0:00:52]} 13. a4 {[%emt 0:00:37]} Ba6 {[%emt 0:01:07]} 14. Rf3 {[%emt 0:01:24]} c5 {[%emt 0:00:40]} 15. Bd5 {[%emt 0:01:48]} cxd4 {[%emt 0:01:27]} 16. Bxd4 {[%emt 0:02:17]} Nf5 {[%emt 0:02:23]} 17. Rxf5 {[%emt 0:04:53]} Bxe2 {[%emt 0:03:01]} 18. Qxe2 {[%emt 0:04:37]} Qxd5 {[%emt 0:00:13]} 19. Rf4 {[%emt 0:00:35]} f6 {[%emt 0:02:53]} 20. Raf1 {[%emt 0:03:48]} fxe5 {[%emt 0:01:19]} 21. Rxf8+ {[%emt 0:00:02]} Bxf8 {[%emt 0:00:09]} 22. Bxe5 {[%emt 0:00:13]} Nc6 {[%emt 0:00:13]} 23. Bg3 {[%emt 0:00:13]} e5 {[%emt 0:00:22]} 24. Bh4 {[%emt 0:00:09]} Bc5+ {[%emt 0:00:17]} 25. Kh1 {[%emt 0:00:02]} Rf8 {[%emt 0:00:56]} 26. Rd1 {[%emt 0:00:01]} Nd4 {[%emt 0:00:53]} 27. Qg4 {[%emt 0:00:16]} Nxc2 {[%emt 0:01:44]} 28. h3 {[%emt 0:00:23]} Bd4 {[%emt 0:00:53]} 29. Be7 {[%emt 0:00:13]} Ne3 {[%emt 0:00:27]} 30. Qg5 {[%emt 0:00:35]} Nxd1 {[%emt 0:00:42]} 31. Bxf8 {[%emt 0:00:03]} Nf2+ {[%emt 0:00:13]} 0-1

[Event "15th Deltalift Open 2018"]
[Site "Halmstad"]
[Date "2018.05.10"]
[Round "3"]
[White "Nilsson, Eskil"]
[Black "Nilsson, Patrik"]
[Result "1/2-1/2"]
[ECO "C09"]
[WhiteElo "1962"]
[BlackElo "2195"]
[Annotator "NA"]
[PlyCount "35"]
[EventDate "2018.??.??"]
[EventType "swiss"]
[EventCountry "SWE"]
[SourceTitle "playchess.com"]
[Source "ChessBase"]
[SourceQuality "1"]
[TimeControl "1800+12"]

1. e4 {[%emt 0:00:00]} e6 {[%emt 0:00:06]} 2. d4 {[%emt 0:00:00]} d5 {[%emt 0:00:02]} 3. Nd2 {[%emt 0:00:02]} c5 {[%emt 0:00:09]} 4. Ngf3 {[%emt 0:00:17]} Nc6 {[%emt 0:00:29]} 5. exd5 {[%emt 0:01:22]} exd5 {[%emt 0:00:05]} 6. Bb5 {[%emt 0:02:40]} Bd6 {[%emt 0:00:07]} 7. O-O {[%emt 0:00:45]} cxd4 {[%emt 0:02:58]} 8. Nb3 {[%emt 0:00:52]} Nge7 {[%emt 0:00:25]} 9. Nbxd4 {[%emt 0:01:29]} O-O {[%emt 0:00:26]} 10. h3 {[%emt 0:01:44]} Bc7 {[%emt 0:03:57]} 11. c3 {[%emt 0:00:48]} Qd6 {[%emt 0:01:10]} 12. Be3 {[%emt 0:02:13]} Nf5 {[%emt 0:01:40]} 13. Nxf5 {[%emt 0:02:20]} Bxf5 {[%emt 0:00:16]} 14. Bd3 {[%emt 0:01:02]} Ne5 {[%emt 0:01:54]} 15. Bf4 {[%emt 0:02:27]} Nxf3+ {[%emt 0:05:25]} 16. Qxf3 {[%emt 0:00:07]} Qxf4 {[%emt 0:00:27]} 17. Qxf4 {[%emt 0:00:14]} Bxf4 {[%emt 0:00:03]} 18. Bxf5 {[%emt 0:00:09]} 1/2-1/2

[Event "15th Deltalift Open 2018"]
[Site "Halmstad"]
[Date "2018.05.10"]
[Round "3"]
[White "Bit-Narva, David"]
[Black "Ivarsson, Torbjorn"]
[Result "1-0"]
[ECO "C00"]
[WhiteElo "1961"]
[BlackElo "2153"]
[Annotator "NA"]
[PlyCount "59"]
[EventDate "2018.??.??"]
[EventType "swiss"]
[EventCountry "SWE"]
[SourceTitle "playchess.com"]
[Source "ChessBase"]
[SourceQuality "1"]
[TimeControl "1800+12"]

1. e4 {[%emt 0:00:00]} e6 {[%emt 0:00:04]} 2. Nf3 {[%emt 0:00:00]} d5 {[%emt 0:00:09]} 3. e5 {[%emt 0:00:00]} c5 {[%emt 0:00:03]} 4. c3 {[%emt 0:00:00]} Nc6 {[%emt 0:00:49]} 5. Na3 {[%emt 0:00:00]} f6 {[%emt 0:00:07]} 6. d4 {[%emt 0:00:01]} Bd7 {[%emt 0:00:51]} 7. Nc2 {[%emt 0:00:16]} Qc7 {[%emt 0:00:20]} 8. Bf4 {[%emt 0:00:32]} Nge7 {[%emt 0:00:14]} 9. Bg3 {[%emt 0:00:26]} Nf5 {[%emt 0:01:03]} 10. exf6 {[%emt 0:00:28]} Nxg3 {[%emt 0:00:01]} 11. fxg7 {[%emt 0:00:19]} Bxg7 {[%emt 0:00:02]} 12. hxg3 {[%emt 0:00:02]} cxd4 {[%emt 0:00:28]} 13. cxd4 {[%emt 0:00:03]} O-O-O {[%emt 0:00:26]} 14. Qd2 {[%emt 0:00:33]} e5 {[%emt 0:00:40]} 15. dxe5 {[%emt 0:00:22]} Nxe5 {[%emt 0:00:09]} 16. O-O-O {[%emt 0:01:35]} Kb8 {[%emt 0:02:02]} 17. Nxe5 {[%emt 0:00:43]} Bxe5 {[%emt 0:00:27]} 18. Kb1 {[%emt 0:01:10]} Bf5 {[%emt 0:02:32]} 19. Bd3 {[%emt 0:00:33]} Qb6 {[%emt 0:01:55]} 20. Ne1 {[%emt 0:00:31]} Bg4 {[%emt 0:02:14]} 21. f3 {[%emt 0:00:58]} Bd7 {[%emt 0:00:48]} 22. f4 {[%emt 0:00:16]} Bf6 {[%emt 0:00:55]} 23. Nf3 {[%emt 0:02:55]} Bg4 {[%emt 0:01:00]} 24. Rde1 {[%emt 0:02:19]} Bxf3 {[%emt 0:01:11]} 25. gxf3 {[%emt 0:00:02]} h6 {[%emt 0:01:46]} 26. Bf5 {[%emt 0:01:30]} Rhe8 {[%emt 0:01:22]} 27. g4 {[%emt 0:01:37]} Bg7 {[%emt 0:00:40]} 28. Qc2 {[%emt 0:03:34]} Re3 {[%emt 0:00:57]} 29. Rxe3 {[%emt 0:00:31]} Qxe3 {[%emt 0:00:03]} 30. Rc1 {[%emt 0:00:05]} 1-0

[Event "15th Deltalift Open 2018"]
[Site "Halmstad"]
[Date "2018.05.10"]
[Round "3"]
[White "Cedervall, Magnus"]
[Black "Bellon Lopez, Juan Manuel"]
[Result "0-1"]
[ECO "B21"]
[WhiteElo "1927"]
[BlackElo "2344"]
[Annotator "NA"]
[PlyCount "114"]
[EventDate "2018.??.??"]
[EventType "swiss"]
[EventCountry "SWE"]
[SourceTitle "playchess.com"]
[Source "ChessBase"]
[SourceQuality "1"]
[TimeControl "1800+12"]

1. e4 {[%emt 0:00:00]} c5 {[%emt 0:00:01]} 2. d4 {[%emt 0:00:06]} cxd4 {[%emt 0:00:01]} 3. c3 {[%emt 0:00:02]} d3 {[%emt 0:00:01]} 4. c4 {[%emt 0:00:05]} g6 {[%emt 0:00:01]} 5. Bxd3 {[%emt 0:00:04]} Bg7 {[%emt 0:00:01]} 6. Nc3 {[%emt 0:00:07]} Nc6 {[%emt 0:00:05]} 7. Nf3 {[%emt 0:00:24]} d6 {[%emt 0:00:01] B21: Sicilian: 2 f4 and Morra Gambit} 8. O-O {[%emt 0:00:25]} (8. h3 Nf6 9. O-O O-O 10. Be3 Be6 11. Rc1 Nd7 12. Ng5 Nc5 13. Be2 Bd7 14. Qd2 Qa5 15. Qc2 {0-1 (37) Stoma,P (2348)-Brodowski,P (2439) Poronin 2017}) 8... Bg4 {[%emt 0:00:47]} 9. Be2 {[%emt 0:00:50]} Rc8 {[%emt 0:00:42]} 10. Be3 {[%emt 0:03:07]} Bxc3 $146 {[%emt 0:01:11]} ({Predecessor:} 10... Nf6 11. Qd2 O-O 12. Bh6 Bxf3 13. Bxf3 Bxh6 14. Qxh6 Nd4 {0-1 (52) Flitney,A (1959)-Smokina,K (2167) Queenstown 2012}) 11. bxc3 {[%emt 0:00:03]} Nf6 {[%emt 0:00:10]} 12. h3 {[%emt 0:04:01]} Bxf3 {[%emt 0:01:40]} 13. Bxf3 {[%emt 0:00:05]} b6 {[%emt 0:01:53]} 14. Bh6 {[%emt 0:03:06]} Ne5 {[%emt 0:00:46]} 15. Bg7 {[%emt 0:01:52]} Rg8 {[%emt 0:00:06]} 16. Bxf6 {[%emt 0:01:23]} exf6 {[%emt 0:00:20]} 17. Be2 {[%emt 0:01:05]} Qc7 {[%emt 0:02:09]} 18. f4 {[%emt 0:01:35]} Nxc4 {[%emt 0:00:24]} 19. Bxc4 {[%emt 0:00:07]} Qxc4 {[%emt 0:00:02]} 20. Qxd6 {[%emt 0:00:17]} Qc5+ {[%emt 0:00:04]} 21. Qxc5 {[%emt 0:04:58]} Rxc5 {[%emt 0:00:02]} 22. Rf3 {[%emt 0:00:25]} Ke7 {[%emt 0:00:05]} 23. Kf2 {[%emt 0:00:24]} Rgc8 {[%emt 0:00:26]} 24. Rc1 {[%emt 0:00:08]} Rc4 {[%emt 0:00:05]} 25. Re3 {[%emt 0:00:10]} b5 {[%emt 0:00:12]} 26. Ke2 {[%emt 0:00:47]} Ra4 {[%emt 0:00:29]} 27. Rc2 {[%emt 0:00:15]} Rc6 {[%emt 0:01:31]} 28. Kd3 {[%emt 0:00:28]} Rd6+ {[%emt 0:00:12]} 29. Ke2 {[%emt 0:00:09]} Rda6 {[%emt 0:00:02]} 30. Kd3 {[%emt 0:02:34]} Rxa2 {[%emt 0:00:21]} 31. Rxa2 {[%emt 0:00:39]} Rxa2 {[%emt 0:00:02]} 32. g4 {[%emt 0:00:03]} Kd6 {[%emt 0:02:02]} 33. e5+ {[%emt 0:00:07]} fxe5 {[%emt 0:00:08]} 34. Rxe5 {[%emt 0:00:32]} a6 {[%emt 0:00:06]} 35. Re8 {[%emt 0:00:31]} Ra4 {[%emt 0:00:18]} 36. f5 {[%emt 0:00:59]} gxf5 {[%emt 0:00:29]} 37. gxf5 {[%emt 0:00:05]} Rh4 {[%emt 0:00:40]} 38. Ra8 {[%emt 0:01:55]} Rxh3+ {[%emt 0:00:16]} 39. Kd4 {[%emt 0:00:15]} Rh4+ {[%emt 0:00:09]} 40. Ke3 {[%emt 0:00:24]} Ra4 {[%emt 0:00:02]} 41. Re8 {[%emt 0:00:49]} Rc4 {[%emt 0:00:14]} 42. Kd3 {[%emt 0:00:48]} h5 {[%emt 0:03:36]} 43. f6 {[%emt 0:00:20]} Rf4 {[%emt 0:00:37]} 44. Ra8 {[%emt 0:00:21]} Rxf6 {[%emt 0:01:08]} 45. Rxa6+ {[%emt 0:00:05]} Ke5 {[%emt 0:01:53]} 46. Ra5 {[%emt 0:00:09]} Rd6+ {[%emt 0:00:07]} 47. Ke3 {[%emt 0:00:07] [#]} Rd5 $1 {[%emt 0:00:02]} 48. Ra7 {[%emt 0:00:27]} Rc5 {[%emt 0:00:56]} 49. Kd3 {[%emt 0:00:22]} Kf6 {[%emt 0:00:16]} 50. Kd4 {[%emt 0:00:16]} Rc4+ {[%emt 0:00:05]} 51. Kd3 {[%emt 0:00:05]} h4 {[%emt 0:00:36]} 52. Ra6+ {[%emt 0:00:05]} Kg7 {[%emt 0:00:59]} 53. Rb6 {[%emt 0:00:15]} Rc5 {[%emt 0:00:06]} 54. Ke2 {[%emt 0:00:38]} h3 {[%emt 0:01:06]} 55. Kf2 {[%emt 0:00:05]} Rg5 {[%emt 0:00:06]} 56. Rd6 {[%emt 0:00:26]} h2 {[%emt 0:00:09]} 57. Rd1 {[%emt 0:00:07]} Rg1 {[%emt 0:00:03]} 0-1